lending/lending_fUSD_20260312
["ID","MTS","AMOUNT","RATE_DAILY","PERIOD"]
[408286782,1773352247079,-500.0,0.00049479,120]
[408286783,1773352247089,-500.0,0.00049479,120]
[408286784,1773352247099,-500.0,0.00049479,120]
[408286785,1773352247108,-500.0,0.00049479,120]
[408286786,1773352247118,-500.0,0.00049479,120]
[408286787,1773352247127,-500.0,0.00049479,120]
[408286788,1773352247138,-500.0,0.00049479,120]
[408286789,1773352247147,-500.0,0.00049479,120]
[408286790,1773352247156,-500.0,0.00049479,120]
[408286791,1773352247166,-423.36207367,0.00049479,120]
[408286792,1773352247175,-500.0,0.00049479,120]
[408286793,1773352247185,-500.0,0.00049479,120]
[408286794,1773352247194,-500.0,0.00049479,120]
[408286795,1773352247203,-500.0,0.00049479,120]
[408286796,1773352247213,-500.0,0.00049479,120]
[408286797,1773352247222,-500.0,0.00049479,120]
[408286798,1773352247232,-500.0,0.00049479,120]
[408286799,1773352247242,-800.0,0.00049499,18]
[408286800,1773352247251,-800.0,0.00049499,18]
[408286801,1773352247261,-800.0,0.00049499,18]
[408286802,1773352247271,-800.0,0.00049499,18]
[408286803,1773352247281,-800.0,0.00049499,18]
[408286804,1773352247290,-800.0,0.00049499,18]
[408286805,1773352247300,-800.0,0.00049499,18]
[408286806,1773352247309,-836.41616822,0.00049499,18]
[408286807,1773352247319,-2954.42978653,0.000495,2]
[408286808,1773352247329,-2100.0,0.000495,18]
[408286809,1773352247339,-200.0,0.000495,120]
[408286810,1773352247348,-2100.0,0.000496,18]
[408286811,1773352247358,-9664.04,0.0004969,120]
[408286812,1773352247367,-2100.0,0.000497,18]
[408286813,1773352247377,-931.7225,0.0004975,2]
[408286814,1773352247386,-10000.0,0.0004976,2]
[408286815,1773352247395,-7129.98027893,0.00049773,2]
[408286816,1773352247409,-166.22736207,0.00049773,2]
[408286817,1773352247418,-2100.0,0.000498,18]
[408286818,1773352247429,-211.88823769,0.00049836,30]
[408286819,1773352247439,-150.0,0.00049836,30]
[408286820,1773352247449,-209.78583947,0.00049836,30]
[408286821,1773352247459,-186.46025929,0.00049836,30]
[408286822,1773352247468,-255.03177489,0.00049836,30]
[408286823,1773352247478,-239.30449894,0.00049836,30]
[408286824,1773352247488,-160.9340658,0.00049836,30]
[408286825,1773352247497,-235.30103741,0.00049836,30]
[408286826,1773352247507,-151.14525656,0.00049836,30]
[408286827,1773352247516,-150.55295773,0.00049836,30]
[408286828,1773352247526,-151.27870997,0.00049836,30]
[408286829,1773352247535,-153.04347814,0.00049836,30]
[408286830,1773352247546,-151.67480634,0.00049836,30]
[408286831,1773352247556,-152.21377695,0.00049836,30]
[408286832,1773352247565,-253.64282151,0.00049836,30]
[408286833,1773352247576,-7129.98027892,0.00049837,2]
[408286834,1773352247585,-500.0,0.0004984,120]
[408286835,1773352247595,-517.68533465,0.0004984,120]
[408286836,1773352247610,-500.0,0.0004984,120]
[408286837,1773352247620,-151.0,0.00049847,120]
[408286838,1773352247630,-462.21,0.00049849,120]
[408286839,1773352247640,-500.0,0.00049849,120]
[408286840,1773352247650,-370.51179437,0.0004985,120]
[408286841,1773352247660,-151.0,0.00049857,120]
[408286842,1773352247670,-500.0,0.00049859,120]
[408286843,1773352247679,-500.0,0.00049859,120]
[408286844,1773352247688,-500.0,0.00049859,120]
[408286845,1773352247698,-500.0,0.00049859,120]
[408286846,1773352247707,-500.0,0.00049859,120]
[408286847,1773352247717,-575.94,0.00049859,120]
[408286848,1773352247726,-500.0,0.00049859,120]
[408286849,1773352247735,-500.0,0.00049859,120]
[408286850,1773352247745,-500.0,0.00049859,120]
[408286851,1773352247754,-500.0,0.00049859,120]
[408286852,1773352247764,-270.35,0.00049859,120]
[408286853,1773352247775,-948634.76309106,0.0004986,120]
[408286854,1773352247825,-693.32343499,0.0004986,120]
[408286855,1773352247899,-3583.29329863,0.00027397,10]
[408286856,1773352248164,-418.680849,0.00027397,10]
[408286857,1773352248187,-2356.04585237,0.00027397,10]
[408286858,1773352248197,-7673.95114763,0.0003015,2]
[408286859,1773352248208,-371.52533801,0.0003015,2]
[408286860,1773352248219,-665.29013755,0.0003015,2]
[408286861,1773352248229,-158.70986245,0.0003015,2]
[408286862,1773352253966,1000.0,0.0001425,2]
[408286863,1773352268269,3076.176205,7.945e-05,2]
[408286864,1773352337206,500.0,9.1e-05,2]
[408286865,1773352337482,500.0,9.1e-05,2]
[408286866,1773352337912,500.0,9.1e-05,2]
[408286867,1773352337964,890.69030244,9.1e-05,2]
[408286868,1773352338418,500.0,9.1e-05,2]
[408286869,1773352338973,500.0,9.1e-05,2]
[408286870,1773352339442,669.22025994,9.1e-05,2]
[408286871,1773352344449,500.0,9.1e-05,2]
[408286872,1773352344985,500.0,9.1e-05,2]
[408286873,1773352345303,500.0,9.1e-05,2]
[408286874,1773352345397,821.26386328,9.1e-05,2]
[408286875,1773352345461,500.0,9.1e-05,2]
[408286876,1773352345796,979.29989179,9.1e-05,2]
[408286877,1773352345970,800.0,9.1e-05,2]
[408286878,1773352346627,511.49245398,9.1e-05,2]
[408286879,1773352347094,508.29721167,9.1e-05,2]
[408286880,1773352348995,500.0,9.1e-05,2]
[408286881,1773352637592,500.0,9.1e-05,2]
[408286882,1773352637899,500.0,9.1e-05,2]
[408286883,1773352638356,500.0,9.1e-05,2]
[408286884,1773352642264,500.0,9.1e-05,2]
[408286885,1773352644335,500.0,9.1e-05,2]
[408286886,1773352644859,500.0,9.1e-05,2]
[408286887,1773352645525,500.0,9.1e-05,2]
[408286888,1773352648757,500.0,9.1e-05,2]
[408286889,1773352649957,500.0,9.1e-05,2]
[408286890,1773352795105,9500.01,0.0001199,2]
[408286891,1773352795127,10000.01,0.0001199,2]
[408286892,1773352795149,32500.93615943,0.0001199,2]
[408286893,1773352795171,595.59510652,0.0001199,2]
[408286894,1773352795192,32.45177586,0.0001199,2]
[408286895,1773352802329,5002.79912878,8e-05,2]
[408286898,1773352846932,265.51915435,0.0001,2]
[408286899,1773352854890,200.0,9.8e-05,2]
[408286902,1773352886535,181.29179344,0.0001199,2]
[408286903,1773352886986,348.17862786,0.0001199,2]
[408286904,1773352887021,348.17862786,0.0001199,2]
[408286905,1773352889621,151.0,0.0001199,2]
[408286906,1773352930574,1000.0,0.000135,2]
[408286907,1773352938103,500.0,8.6e-05,2]
[408286908,1773352938306,500.0,8.6e-05,2]
[408286909,1773352938595,500.0,8.6e-05,2]
[408286910,1773352938637,500.0,8.6e-05,2]
[408286911,1773352938778,848.9963962,8.6e-05,2]
[408286912,1773352939265,627.73978365,8.6e-05,2]
[408286913,1773352939329,500.0,8.6e-05,2]
[408286914,1773352939752,500.0,8.6e-05,2]
[408286915,1773352940715,924.26076055,8.6e-05,2]
[408286916,1773352944304,500.0,8.6e-05,2]
[408286917,1773352944775,500.0,8.6e-05,2]
[408286918,1773352944809,500.0,8.6e-05,2]
[408286919,1773352945260,500.0,8.6e-05,2]
[408286920,1773352945730,687.73685514,8.6e-05,2]
[408286921,1773352945762,500.0,8.6e-05,2]
[408286922,1773352946230,500.0,8.6e-05,2]
[408286923,1773352946728,645.18499649,8.6e-05,2]
[408286924,1773352948408,266.09120797,8.6e-05,2]
[408286925,1773352948436,711.58501604,8.6e-05,2]
[408286926,1773352948646,500.0,8.6e-05,2]
[408286927,1773352948678,1969.63071581,0.0001,2]
[408286928,1773352951325,269.64939665,0.000107,2]
[408286929,1773352953406,500.0,8.6e-05,2]
[408286930,1773352953875,537.77917638,8.6e-05,2]
[408286931,1773352957645,5511.36569512,9.5e-05,3]
[408286932,1773352957672,10000.01,9.5e-05,3]
[408286933,1773352957698,10000.01,9.5e-05,3]
[408286934,1773352957721,10000.01,9.5e-05,3]
[408286935,1773352957746,10000.01,9.5e-05,3]
[408286936,1773352957773,10000.01,9.5e-05,3]
[408286937,1773352957802,10000.01,9.5e-05,3]
[408286938,1773352957835,10000.01,9.5e-05,3]
[408286939,1773352957866,10000.01,9.5e-05,3]
[408286940,1773352957891,10000.01,9.5e-05,3]
[408286941,1773352957914,563.14333066,9.5e-05,3]
[408286942,1773352957937,595.59510652,9.5e-05,3]
[408286943,1773352957960,595.59510652,9.5e-05,3]
[408286944,1773352957988,595.59510652,9.5e-05,3]
[408286945,1773352958013,595.59510652,9.5e-05,3]
[408286946,1773352958043,595.59510652,9.5e-05,3]
[408286947,1773352958071,595.59510652,9.5e-05,3]
[408286948,1773352958097,595.59510652,9.5e-05,3]
[408286949,1773352958120,595.59510652,9.5e-05,3]
[408286950,1773352958151,69103.3280675,9.5e-05,3]
[408286951,1773352958192,13862.87823563,0.0001,2]
[408286952,1773352988105,1934.991672,7.945e-05,2]
[408286956,1773353197513,-199.32707867,0.000135,2]
[408286958,1773353236562,500.0,8.6e-05,2]
[408286959,1773353236766,785.45770305,8.6e-05,2]
[408286960,1773353237014,930.87302549,8.6e-05,2]
[408286961,1773353240017,768.64927804,8.6e-05,2]
[408286962,1773353243911,831.11571646,8.6e-05,2]
[408286963,1773353246542,500.0,8.6e-05,2]
[408286964,1773353247026,500.0,8.6e-05,2]
[408286965,1773353247491,500.0,8.6e-05,2]
[408286966,1773353247964,984.89016242,8.6e-05,2]
[408286967,1773353248107,500.0,8.6e-05,2]
[408286968,1773353248590,969.69737499,8.6e-05,2]
[408286969,1773353248719,500.0,8.6e-05,2]
[408286970,1773353249193,713.97168404,8.6e-05,2]
[408286971,1773353249703,500.0,8.6e-05,2]
[408286972,1773353250243,116.70089817,8.6e-05,2]
[408286973,1773353250267,383.29910183,8.6e-05,2]
[408286974,1773353250496,500.0,8.6e-05,2]
[408286975,1773353251018,957.72320404,8.6e-05,2]
[408286976,1773353251615,500.0,8.6e-05,2]
[408286977,1773353252083,500.0,8.6e-05,2]
[408286978,1773353252533,500.0,8.6e-05,2]
[408286979,1773353253170,500.0,8.6e-05,2]
[408286980,1773353253667,500.0,8.6e-05,2]
[408286981,1773353254143,500.0,8.6e-05,2]
[408286982,1773353254673,500.0,8.6e-05,2]
[408286983,1773353255155,500.0,8.6e-05,2]
[408286984,1773353255636,905.57276285,8.6e-05,2]
[408287011,1773353431627,-188.67257488,0.000143,2]
[408287012,1773353431636,-268.0,0.000143,2]
[408287013,1773353431646,-229.32199916,0.00014303,2]
[408287014,1773353431658,-20.67800084,0.00014303,2]
[408287015,1773353431668,-600.0,0.00014306,2]
[408287016,1773353431677,-406.43878528,0.00014349,2]
[408287017,1773353431688,-93.56121472,0.00014349,2]
[408287018,1773353431698,-198.40163113,0.00014899,2]
[408287019,1773353431707,-150.0,0.00014999,2]
[408287020,1773353431717,-4.48647742,0.00014999,2]
[408287021,1773353431729,-295.51352258,0.00014999,2]
[408287022,1773353431738,-424.11567884,0.00014999,2]
[408287023,1773353431750,-387.6034373,0.00014999,2]
[408287024,1773353431761,-388.28088386,0.00014999,2]
[408287025,1773353431771,-356.44950306,0.00015,30]
[408287026,1773353431783,-143.55049694,0.00015,30]
[408287027,1773353431792,-500.0,0.00015,30]
[408287028,1773353431801,-500.0,0.00015,30]
[408287030,1773353431811,-500.0,0.00015,30]
[408287032,1773353431821,-500.0,0.00015,30]
[408287033,1773353431831,-500.0,0.00015,30]
[408287034,1773353431841,-500.0,0.00015,30]
[408287035,1773353431851,-500.0,0.00015,30]
[408287036,1773353431862,-500.0,0.00015,30]
[408287037,1773353431871,-500.0,0.00015,30]
[408287038,1773353431881,-500.0,0.00015,30]
[408287039,1773353431891,-500.0,0.00015,30]
[408287040,1773353431901,-500.0,0.00015,30]
[408287041,1773353431911,-500.0,0.00015,30]
[408287042,1773353431920,-500.0,0.00015,30]
[408287043,1773353431929,-500.0,0.00015,30]
[408287044,1773353431939,-783.06526647,0.00015,30]
[408287045,1773353431948,-500.0,0.00015,30]
[408287046,1773353431958,-500.0,0.00015,30]
[408287047,1773353431967,-500.0,0.00015,30]
[408287048,1773353431976,-500.0,0.00015,30]
[408287049,1773353431986,-500.0,0.00015,30]
[408287050,1773353431995,-500.0,0.00015,30]
[408287051,1773353432004,-500.0,0.00015,30]
[408287052,1773353432013,-500.0,0.00015,30]
[408287053,1773353432022,-500.0,0.00015,30]
[408287054,1773353432032,-500.0,0.00015,30]
[408287055,1773353432041,-500.0,0.00015,30]
[408287056,1773353432050,-500.0,0.00015,30]
[408287057,1773353432060,-500.0,0.00015,30]
[408287058,1773353432069,-500.0,0.00015,30]
[408287059,1773353432078,-500.0,0.00015,30]
[408287060,1773353432088,-500.0,0.00015,30]
[408287061,1773353432098,-500.0,0.00015,30]
[408287062,1773353432111,-477.71574656,0.00015,30]
[408287063,1773353432124,-22.28425344,0.00015,30]
[408287064,1773353432134,-500.0,0.00015,30]
[408287065,1773353432144,-197.94180565,0.00015,30]
[408287066,1773353432158,-302.05819435,0.00015,30]
[408287067,1773353432173,-500.0,0.00015,30]
[408287068,1773353432183,-500.0,0.00015,30]
[408287069,1773353432194,-500.0,0.00015,30]
[408287070,1773353432206,-500.0,0.00015,30]
[408287071,1773353432217,-500.0,0.00015,30]
[408287072,1773353432227,-500.0,0.00015,30]
[408287073,1773353432239,-500.0,0.00015,30]
[408287074,1773353432249,-500.0,0.00015,30]
[408287075,1773353432264,-764.2981901,0.00015,30]
[408287076,1773353432274,-500.0,0.00015,30]
[408287077,1773353432284,-500.0,0.00015,30]
[408287078,1773353432293,-500.0,0.00015,30]
[408287079,1773353432303,-500.0,0.00015,30]
[408287080,1773353432311,-100.71588357,0.00015,30]
[408287081,1773353432326,-399.28411643,0.00015,30]
[408287082,1773353432336,-500.0,0.00015,30]
[408287083,1773353432345,-500.0,0.00015,30]
[408287084,1773353432354,-500.0,0.00015,30]
[408287085,1773353432363,-500.0,0.00015,30]
[408287086,1773353432372,-500.0,0.00015,30]
[408287087,1773353432382,-500.0,0.00015,30]
[408287088,1773353432391,-500.0,0.00015,30]
[408287089,1773353432400,-500.0,0.00015,30]
[408287090,1773353432409,-500.0,0.00015,30]
[408287091,1773353432419,-500.0,0.00015,30]
[408287092,1773353432428,-500.0,0.00015,30]
[408287093,1773353432438,-500.0,0.00015,30]
[408287094,1773353432447,-500.0,0.00015,30]
[408287095,1773353432456,-500.0,0.00015,30]
[408287096,1773353432466,-500.0,0.00015,30]
[408287097,1773353432475,-500.0,0.00015,30]
[408287098,1773353432484,-873.88139152,0.00015,30]
[408287099,1773353432494,-500.0,0.00015,30]
[408287100,1773353432503,-500.0,0.00015,30]
[408287101,1773353432512,-500.0,0.00015,30]
[408287102,1773353432521,-500.0,0.00015,30]
[408287103,1773353432531,-500.0,0.00015,30]
[408287104,1773353432540,-500.0,0.00015,30]
[408287105,1773353432550,-500.0,0.00015,30]
[408287106,1773353432559,-500.0,0.00015,30]
[408287107,1773353432568,-500.0,0.00015,30]
[408287108,1773353432577,-500.0,0.00015,30]
[408287109,1773353432586,-500.0,0.00015,30]
[408287110,1773353432595,-500.0,0.00015,30]
[408287111,1773353432605,-500.0,0.00015,30]
[408287112,1773353432614,-500.0,0.00015,30]
[408287113,1773353432624,-211.39,0.00015068,2]
[408287114,1773353432633,-600.0,0.0001573,2]
[408287115,1773353432642,-250.0,0.0001573,2]
[408287116,1773353432651,-250.0,0.0001573,2]
[408287117,1773353432660,-300.0,0.0001573,2]
[408287118,1773353432669,-500.0,0.00015866,2]
[408287119,1773353432677,-150.99,0.00015866,2]
[408287120,1773353432687,-150.99,0.00015866,2]
[408287121,1773353432695,-983.1,0.00015866,2]
[408287122,1773353432704,-9828.22635145,0.00015866,2]
[408287123,1773353432716,-171.76364855,0.00015866,2]
[408287124,1773353432724,-299.99,0.00015866,2]
[408287125,1773353432733,-123.76131933,0.00015866,2]
[408287126,1773353432744,-738.41,0.00015866,2]
[408287127,1773353432755,-444.26834249,0.00015866,2]
[408287130,1773353437688,-8693.55033818,0.00015866,2]
[408287131,1773353437698,-1842.25,0.00015866,2]
[408287132,1773353437707,-5000.00761061,0.000162,5]
[408287133,1773353437715,-600.0,0.000169,6]
[408287134,1773353437724,-2139.32993308,0.000169,2]
[408287135,1773353437735,-360.67006692,0.000169,2]
[408287136,1773353437744,-2633.98192366,0.000169,2]
[408287137,1773353437755,-8090.7249988,0.000169,2]
[408287138,1773353437764,-500.0,0.00016973,2]
[408287139,1773353437773,-196.82,0.00016999,2]
[408287140,1773353437782,-500.0,0.00016999,2]
[408287141,1773353437793,-500.0,0.00016999,2]
[408287142,1773353437802,-500.0,0.00016999,2]
[408287143,1773353437811,-500.0,0.00016999,2]
[408287144,1773353437820,-500.0,0.00016999,2]
[408287145,1773353437829,-500.0,0.00016999,2]
[408287146,1773353437838,-500.0,0.00016999,2]
[408287147,1773353437847,-500.0,0.00016999,2]
[408287148,1773353437855,-500.0,0.00016999,2]
[408287149,1773353437865,-500.0,0.00016999,2]
[408287150,1773353437874,-500.0,0.00016999,2]
[408287151,1773353437883,-500.0,0.00016999,2]
[408287152,1773353437892,-500.0,0.00016999,2]
[408287153,1773353437901,-500.0,0.00016999,2]
[408287154,1773353437911,-500.0,0.00016999,2]
[408287155,1773353437919,-500.0,0.00016999,2]
[408287156,1773353437928,-500.0,0.00016999,2]
[408287157,1773353437937,-500.0,0.00016999,2]
[408287158,1773353437945,-500.0,0.00016999,2]
[408287159,1773353437954,-500.0,0.00016999,2]
[408287160,1773353437963,-500.0,0.00016999,2]
[408287161,1773353437972,-500.0,0.00016999,2]
[408287162,1773353437980,-500.0,0.00016999,2]
[408287163,1773353437989,-500.0,0.00016999,2]
[408287164,1773353437998,-500.0,0.00016999,2]
[408287165,1773353438168,-500.0,0.00016999,2]
[408287166,1773353438178,-500.0,0.00016999,2]
[408287167,1773353438186,-434.71652057,0.00016999,2]
[408287168,1773353438195,-500.0,0.00016999,2]
[408287169,1773353438204,-500.0,0.00016999,2]
[408287170,1773353438213,-500.0,0.00016999,2]
[408287171,1773353438222,-500.0,0.00016999,2]
[408287172,1773353438231,-500.0,0.00016999,2]
[408287173,1773353438243,-500.0,0.00016999,2]
[408287174,1773353438252,-500.0,0.00016999,2]
[408287175,1773353438260,-500.0,0.00016999,2]
[408287176,1773353438269,-500.0,0.00016999,2]
[408287177,1773353438278,-500.0,0.00016999,2]
[408287178,1773353438288,-500.0,0.00016999,2]
[408287179,1773353438297,-500.0,0.00016999,2]
[408287180,1773353438306,-500.0,0.00016999,2]
[408287181,1773353438314,-500.0,0.00016999,2]
[408287182,1773353438323,-400.0,0.00016999,2]
[408287183,1773353438332,-500.0,0.00016999,2]
[408287184,1773353438341,-500.0,0.00016999,2]
[408287185,1773353438349,-500.0,0.00016999,2]
[408287186,1773353438358,-500.0,0.00016999,2]
[408287187,1773353438368,-500.0,0.00016999,2]
[408287188,1773353438380,-500.0,0.00016999,2]
[408287189,1773353438389,-500.0,0.00016999,2]
[408287190,1773353438398,-500.0,0.00016999,2]
[408287191,1773353438408,-500.0,0.00016999,2]
[408287193,1773353438418,-557.63677509,0.00016999,2]
[408287195,1773353438427,-500.0,0.00016999,2]
[408287197,1773353438436,-500.0,0.00016999,2]
[408287199,1773353438444,-32994.25211171,0.00017,2]
[408287215,1773353440007,-170369.85637878,0.00017,2]
[408287216,1773353440019,-452329.37577562,0.00017,2]
[408287217,1773353440027,-152.22165155,0.00017,2]
[408287218,1773353440037,-507.0,0.00017,2]
[408287219,1773353440046,-2000.0,0.00017004,2]
[408287220,1773353440055,-77622.37824573,0.000171,2]
[408287221,1773353440063,-10724.70692239,0.00017233,2]
[408287222,1773353440072,-1500.0,0.00017236,2]
[408287223,1773353440081,-500.0,0.00017383,2]
[408287224,1773353440090,-500.0,0.00017542,2]
[408287225,1773353440099,-10724.70692239,0.00017567,2]
[408287226,1773353440108,-786.82467732,0.000177,2]
[408287227,1773353440117,-1007.41782398,0.0001786,2]
[408287228,1773353440126,-1229.1914403,0.0001789,2]
[408287229,1773353440134,-1077.11010336,0.0001789,2]
[408287230,1773353440143,-10724.70692239,0.000179,2]
[408287231,1773353440152,-500.0,0.00018232,2]
[408287232,1773353440161,-317.75357978,0.00018232,2]
[408287233,1773353440173,-221.36080806,0.00018232,2]
[408287234,1773353440182,-359.91588155,0.00018232,2]
[408287235,1773353440191,-500.0,0.00018232,2]
[408287236,1773353440200,-340.96870369,0.00018232,2]
[408287237,1773353440210,-10724.70692239,0.00018233,2]
[408287238,1773353440219,-10724.70692239,0.00018567,2]
[408287239,1773353440228,-160.0,0.00018701,2]
[408287240,1773353440240,-250.0,0.00018895,2]
[408287241,1773353440249,-10724.70692239,0.000189,2]
[408287242,1773353440259,-448.79647457,0.00019,7]
[408287243,1773353440267,-2000.0,0.00019129,2]
[408287244,1773353440277,-10724.70692239,0.00019233,2]
[408287246,1773353440286,-1300.0,0.000195,7]
[408287247,1773353440295,-639.42076342,0.00019533,2]
[408287248,1773353440304,-3025.36,0.00019562,2]
[408287249,1773353440313,-10724.70692239,0.00019567,2]
[408287250,1773353440322,-2000.0,0.000196,7]
[408287251,1773353440331,-2600.0,0.000197,7]
[408287252,1773353440341,-3300.0,0.000198,7]
[408287254,1773353440350,-5000.0,0.000198,2]
[408287256,1773353440359,-500.0,0.00019899,2]
[408287257,1773353440368,-162.25741465,0.000199,6]
[408287258,1773353440377,-50102.63225937,0.000199,2]
[408287259,1773353440386,-172.089,0.000199,2]
[408287260,1773353440395,-1314.799,0.000199,2]
[408287261,1773353440404,-600.0,0.000199,7]
[408287262,1773353440414,-172.02600898,0.000199,2]
[408287263,1773353440423,-201.40734149,0.000199,3]
[408287264,1773353440432,-7129.98027893,0.000199,2]
[408287265,1773353440441,-157.2463604,0.000199,2]
[408287266,1773353440449,-10724.70692239,0.000199,2]
[408287267,1773353440459,-166.22736207,0.000199,2]
[408287268,1773353440468,-14478.40492129,0.0001998,2]
[408287269,1773353440477,-151.0,0.00019988,2]
[408287270,1773353440486,-151.0,0.00019988,2]
[408287271,1773353440495,-151.0,0.00019988,2]
[408287272,1773353440504,-151.0,0.00019988,2]
[408287273,1773353440513,-151.0,0.00019988,2]
[408287274,1773353440522,-151.0,0.00019988,2]
[408287275,1773353440531,-151.0,0.00019988,2]
[408287276,1773353440540,-151.0,0.00019988,2]
[408287277,1773353440550,-151.0,0.00019988,2]
[408287278,1773353440559,-151.0,0.00019988,2]
[408287279,1773353440567,-151.0,0.00019988,2]
[408287280,1773353440577,-163.42785597,0.00019988,2]
[408287281,1773353440585,-300.0,0.00019999,2]
[408287282,1773353440594,-666.0,0.00019999,2]
[408287283,1773353440603,-500.0,0.00019999,2]
[408287284,1773353440612,-500.0,0.00019999,2]
[408287285,1773353440621,-500.0,0.00019999,2]
[408287286,1773353440630,-500.0,0.00019999,2]
[408287287,1773353440639,-500.0,0.00019999,2]
[408287288,1773353440648,-500.0,0.00019999,2]
[408287289,1773353440659,-500.0,0.00019999,2]
[408287290,1773353440669,-500.0,0.00019999,2]
[408287291,1773353440678,-500.0,0.00019999,2]
[408287292,1773353440688,-500.0,0.00019999,2]
[408287293,1773353440696,-500.0,0.00019999,2]
[408287294,1773353440706,-500.0,0.00019999,2]
[408287295,1773353440715,-500.0,0.00019999,2]
[408287296,1773353440724,-372.46622483,0.00019999,2]
[408287297,1773353440733,-500.0,0.00019999,2]
[408287298,1773353440742,-500.0,0.00019999,2]
[408287299,1773353440751,-514.75306544,0.00019999,2]
[408287300,1773353440760,-367373.71289633,0.0002,2]
[408287301,1773353440772,-4386.02600372,0.0002,2]
[408287307,1773353442788,-4528.27067227,0.0002,2]
[408287308,1773353442799,-989.29856,0.0002,2]
[408287309,1773353442811,-736.00102635,0.0002,2]
[408287310,1773353443035,-170718.79553007,0.0002,2]
[408287317,1773353445661,-1544.97190607,0.0002,2]
[408287318,1773353445673,-2898.21117259,0.0002,2]
[408287347,1773353480233,3253.41493128,0.00011591,2]
[408287348,1773353480260,962.94506872,0.00011591,2]
[408287349,1773353480481,4216.36,0.00012201,2]
[408287350,1773353480883,4216.36,0.00012811,2]
[408287351,1773353481109,604.34493128,0.00013422,2]
[408287352,1773353481132,3612.01506872,0.00013422,2]
[408287353,1773353539516,500.0,8.6e-05,2]
[408287354,1773353540024,500.0,8.6e-05,2]
[408287355,1773353541154,509.589199,8.6e-05,2]
[408287356,1773353842373,979.29989179,8.6e-05,2]
[408287362,1773354136034,500.0,8.6e-05,2]
[408287363,1773354136400,500.0,8.6e-05,2]
[408287364,1773354136939,524.69213609,8.6e-05,2]
[408287365,1773354145255,500.0,8.6e-05,2]
[408287366,1773354145713,500.0,8.6e-05,2]
[408287367,1773354147163,500.0,8.6e-05,2]
[408287368,1773354147601,500.0,8.6e-05,2]
[408287369,1773354148037,705.24930331,8.6e-05,2]
[408287370,1773354153915,500.0,8.6e-05,2]
[408287371,1773354154373,643.20047838,8.6e-05,2]
[408287372,1773354380519,-309.50066864,0.00013832,2]
[408287373,1773354380548,-3823.86951116,0.00013857,2]
[408287374,1773354380576,-250.0,0.00013882,2]
[408287375,1773354380604,-398.1545,0.00013932,2]
[408287376,1773354380634,-171.9606404,0.00013932,2]
[408287377,1773354380838,-93.0393596,0.00013932,2]
[408287378,1773354380866,-491.54511265,0.00013946,2]
[408287379,1773354380896,-1200.0,0.00013995,2]
[408287380,1773354380926,-300.0,0.0001403,2]
[408287381,1773354380955,-300.0,0.00014031,2]
[408287382,1773354380992,-1014.4810555,0.00014032,2]
[408287383,1773354415128,-3130.093291,0.00013961,2]
[408287384,1773354415151,-2455.41082096,0.00014032,2]
[408287385,1773354427591,2421.624486,7.945e-05,2]